Cogmind - Beta 14 @@@ ROGUE MODE // 2024.08.12 @ 21:12:02 Player: s0lid Result: Destroyed by Y-64 Sentinel with Wave Gun Performance ------------- Evolutions (5) 2500 Regions Visited (13) 2600 Robots Destroyed (191) 955 Value Destroyed (6143) 6143 Prototype IDs (23) 460 Alien Tech Used (0) 0 Bonus (449) 449 TOTAL SCORE: 13107 Bonus ------- High Alert Combat Kills 22 Follower Combat Kills 633 Friendly Fire -206 Cogmind --------- Core Integrity 0/1000 Matter 237/300 Energy 99/100 System Corruption 14% Temperature Cool (27) Movement Core (50) Location -5/Extension Parts ------- > --- POWER (2) -------- (None) > --- PROPULSION (4) --- Flexi-carbon Leg > --- UTILITY (8) ------ Advanced Targeting Computer System Restoration Module > --- WEAPON (3) ------- (None) > --- INVENTORY (5) ---- Micro Nuclear Core Fusion Compressor Neutrino Core Improved Matter Compressor (300) Recoil Nullifier Peak State ------------ > --- POWER ------------ Neutrino Core Neutrino Core > --- PROPULSION ------- Carbon-fiber Leg Carbon-fiber Leg Flexi-carbon Leg Flexi-carbon Leg > --- UTILITY ---------- Huge Storage Unit High-capacity Battery Improved Trap Scanner Advanced Targeting Computer Improved Transmission Jammer Layered Medium Armor Plating Improved Focal Shield Remote Force Field > --- WEAPON ----------- Neutron Cannon Neutron Cannon Gauss Cannon > --- INVENTORY -------- Angular Momentum Engine Fusion Compressor Improved Linear Gravjet Improved Linear Gravjet Improved Linear Gravjet Improved Linear Gravjet Large Storage Unit Improved Matter Compressor Improved Matter Compressor Recoil Nullifier Layered Medium Armor Plating Thermal Shield Remote Force Field System Restoration Module Advanced Field Recycling Unit Neutron Cannon KE Penetrator Improved KE Penetrator [Rating: 89] Favorites ----------- Power Neutrino Core Engine Heavy Ion Engine Power Core Neutrino Core Propulsion Carbon-fiber Leg Treads Advanced Treads Leg Carbon-fiber Leg Wheel Wheel Hover Unit Improved Linear Gravjet Flight Unit Flight Unit Utility Huge Storage Unit Device Improved Heat Sink Storage Huge Storage Unit Processor Advanced Targeting Computer Hackware System Shield Protection Layered Medium Armor Plating Weapon Advanced Beam Rifle Energy Gun Advanced Beam Rifle Energy Cannon Neutron Cannon Ballistic Gun Precision Assault Rifle Ballistic Cannon Assault Cannon Launcher Grenade Launcher Slashing Weapon Blade Saw Special Melee Weapon Datajack Build | -11 -10 -9 -9 -9 -8 -8 -8 -7 -6 -6 -6 -5 -5 ------- Run | Yrd Mat Mat Min Exi Min Mat Sto Fac Fac Low Low Fac Ext Slots Evolved 10 | . . 2 . . . 2 . 2 2 . . 2 . Power 1 | . . . . . . . . . 1 . . . . Propulsion 2 | . . 2 . . . . . . . . . . . Utility 6 | . . . . . . 2 . 2 . . . 2 . Weapon 1 | . . . . . . . . . 1 . . . . Parts Attached 246 | 6 5 21 9 . 4 17 43 36 16 1 . 60 28 Power 25 | 1 . 1 2 . . 1 3 3 1 1 . 9 3 Engine 12 | 1 . 1 2 . . 1 3 2 . . . . 2 Core 13 | . . . . . . . . 1 1 1 . 9 1 Reactor . | . . . . . . . . . . . . . . Propulsion 93 | 2 2 8 2 . 3 5 26 10 6 . . 16 13 Treads 10 | . . 1 . . . . 8 1 . . . . . Leg 46 | . . 2 1 . 3 3 11 6 6 . . 10 4 Wheel 28 | 2 2 5 . . . 2 4 2 . . . 6 5 Hover 6 | . . . . . . . 1 1 . . . . 4 Flight 3 | . . . 1 . . . 2 . . . . . . Utility 47 | 1 2 . . . 1 3 . 13 5 . . 16 6 Device 25 | . 1 . . . . 1 . 8 2 . . 10 3 Storage 9 | 1 1 . . . . . . 1 2 . . 3 1 Processor 5 | . . . . . 1 1 . 2 . . . 1 . Hackware 2 | . . . . . . 1 . . 1 . . . . Protection 6 | . . . . . . . . 2 . . . 2 2 Artifact . | . . . . . . . . . . . . . . Weapon 81 | 2 1 12 5 . . 8 14 10 4 . . 19 6 Energy Gun 22 | 1 1 7 . . . 1 5 3 3 . . 1 . Energy Cannon 9 | . . . . . . . . . . . . 9 . Ballistic Gun 18 | 1 . 3 . . . 1 3 3 . . . 6 1 Ballistic Cannon 12 | . . . . . . 4 3 2 . . . 1 2 Launcher 8 | . . . 2 . . 1 2 1 . . . 1 1 Special Weapon . | . . . . . . . . . . . . . . Impact Weapon . | . . . . . . . . . . . . . . Slashing Weapon 5 | . . 2 3 . . . . . . . . . . Piercing Weapon . | . . . . . . . . . . . . . . Special Melee Weapon 7 | . . . . . . 1 1 1 1 . . 1 2 Unidentified Prototypes 18 | . . 2 . . . 1 6 3 . . . 6 . Corrupted Parts 1 | . . 1 . . . . . . . . . . . System Corruption 9 | . . 9 . . . . . . . . . . . Parts Lost 67 | . . 6 2 . 1 1 5 8 2 . . 20 22 Power 10 | . . . 1 . . 1 1 . 1 . . 3 3 Propulsion 33 | . . 5 1 . . . 4 4 1 . . 9 9 Utility 17 | . . . . . 1 . . 2 . . . 7 7 Weapon 7 | . . 1 . . . . . 2 . . . 1 3 Highest Loss Streak 17 | . . 3 1 . 1 1 4 4 1 . . 8 17 To Critical Strikes 2 | . . . . . . . . . . . . 1 1 Average Slot Usage (%) 96 | . 95 97 95 100 99 99 98 93 93 99 100 95 93 Engine 5 | . 14 11 9 11 11 9 8 4 . . . . 2 Core 4 | . . . . . . . . 2 7 12 13 10 7 Treads 2 | . . 1 . . . . 17 2 . . . . . Leg 14 | . . 8 22 22 22 27 8 7 25 26 26 14 9 Wheel 10 | . 28 32 14 11 11 8 8 15 . . . 5 9 Flight 1 | . . . 5 11 10 . . . . . . . . Device 11 | . 10 11 11 11 8 3 . 7 13 13 13 20 21 Storage 8 | . 14 11 11 11 11 9 9 7 6 6 6 7 10 Processor 10 | . . . . . 1 14 18 17 13 13 13 11 5 Hackware 3 | . . . . . . 8 9 6 5 6 6 1 . Protection 1 | . . . . . . . . 3 . . . 2 4 Energy Gun 7 | . 18 17 . . . 1 6 6 13 20 20 7 . Energy Cannon 1 | . . . . . . . . . . . . 5 10 Ballistic Gun 1 | . 9 3 . . . . 2 1 3 . . 3 1 Ballistic Cannon 2 | . . . . . . 10 9 5 . . . . 2 Slashing Weapon 2 | . . . 12 22 22 2 . . . . . . . Peak Build Rating 89 | 6 9 23 25 25 28 32 37 49 65 64 64 88 89 Average Rating 47 | 3 8 19 20 25 25 30 33 43 55 63 64 77 78 On Entrance 35 | . 6 9 22 25 25 27 30 34 48 60 64 64 87 Naked Turns . | . . . . . . . . . . . . . . Heaviest Build 160 | 14 90 95 95 94 94 99 99 105 108 105 105 157 160 Greatest Support 88 | 20 20 46 22 12 12 55 88 62 75 75 75 80 70 Greatest Overweight (x) 13 | . 4 7 7 7 7 8 9 7 1 1 1 13 11 Average Overweight (x) 3 | . . 2 5 7 7 4 4 2 . 1 1 3 5 Largest Inventory Capacity 25 | 8 25 25 25 25 25 25 25 25 25 25 25 25 25 Average Capacity 24 | 6 9 25 25 25 25 25 25 25 24 25 25 25 24 Most Carried 25 | 4 8 25 25 25 25 25 25 25 25 25 25 25 25 Average Carried 23 | 2 6 22 24 24 24 24 24 23 22 24 25 23 22 Final Capacity 25 | 8 25 25 25 25 25 25 25 25 25 25 25 25 5 Final Carried 25 | 4 8 25 25 25 25 25 25 22 24 25 25 22 5 Class Distribution -------------------- 44% | Mutant 16% | Scavenger-Gunner 14% | Scavenger-Mutant 7% | Scavenger-Tank 7% | Gunner 5% | Tank 4% | Commander-Mutant Dominant Class ---------------- Mutant | -10/Materials Mutant | -9/Materials Mutant | -9/Mines Scavenger-Mutant | -9/Exiles Commander-Mutant | -8/Mines Scavenger-Mutant | -8/Materials Mutant | -8/Storage Mutant | -7/Factory Gunner | -6/Factory Scavenger-Gunner | -6/Lower Caves Scavenger-Gunner | -6/Lower Caves Scavenger-Gunner | -5/Factory Scavenger-Tank | -5/Extension Resources | -11 -10 -9 -9 -9 -8 -8 -8 -7 -6 -6 -6 -5 -5 ----------- Run | Yrd Mat Mat Min Exi Min Mat Sto Fac Fac Low Low Fac Ext Matter Collected 6394 | 226 272 595 141 . 216 292 1034 814 224 10 . 1783 787 Remotely . | . . . . . . . . . . . . . . Salvage Created 8130 | . 253 1081 92 . . 293 1548 1149 661 . . 2328 725 Parts 391 | . 14 65 14 . . 20 80 65 20 . . 81 32 Haulers Intercepted 19 | . . 4 . . . 2 6 3 1 . . 3 . Recyclers Shooed 10 | . . 1 . . . . . . 2 . . 7 . Parts Field Recycled . | . . . . . . . . . . . . . . Retrieved Matter . | . . . . . . . . . . . . . . Parts Self-Destructed 5 | . . . . . . . . . . 1 4 . . Prevented 2 | . . . . . . . . . . 2 . . . Kills | -11 -10 -9 -9 -9 -8 -8 -8 -7 -6 -6 -6 -5 -5 ------- Run | Yrd Mat Mat Min Exi Min Mat Sto Fac Fac Low Low Fac Ext Combat Hostiles Destroyed 127 | . 3 17 6 . . 5 30 26 4 . . 29 7 Melee 3 | . . . 2 . . . 1 . . . . . . Guns 58 | . 3 16 . . . 1 11 11 4 . . 12 . Cannons 43 | . . . . . . 4 10 15 . . . 11 3 AOE 20 | . . . 4 . . . 8 . . . . 5 3 Classes Destroyed 17 | . 4 6 . . . 2 2 2 1 . . . . Worker 9 | . 2 1 . . . . 2 2 1 . . 1 . Builder 3 | . . 1 . . . . . 1 . . . . 1 Tunneler 2 | . . . . . . . . . 1 . . 1 . Hauler 19 | . . 4 . . . 2 6 3 1 . . 3 . Recycler 13 | . 1 1 . . . . 4 . 2 . . 4 1 Mechanic 2 | . . . . . . . 1 . . . . 1 . Operator 2 | . . 1 . . . . 1 . . . . . . Watcher 13 | . 1 3 . . . . . 1 . . . 5 3 Swarmer 31 | . . 6 6 . . . 5 5 . . . 9 . Grunt 46 | . 3 4 1 . . 2 12 13 2 . . 8 1 Brawler 3 | . . 1 . . . . 1 1 . . . . . Duelist 4 | . . . . . . 1 2 . 1 . . . . Protector 1 | . . . . . . . 1 . . . . . . Sentry 22 | . . 6 . . . 1 9 2 . . . 2 2 Specialist 1 | . . . . . . . . 1 . . . . . Hunter 4 | . . . . . . 1 . 1 1 . . 1 . Programmer 12 | . . . . . . . . 3 . . . 9 . Thug 1 | . . . . . . . . . . . . . 1 Savage 2 | . . . . . . . . . . . . . 2 Butcher 1 | . . . . . . . . . . . . . 1 Best Kill Streak 15 | . 6 5 4 . . 3 15 8 2 . . 6 6 Combat Bots Only 9 | . 2 5 4 . . 3 9 6 2 . . 5 6 Max Kills in Single Turn 4 | . 1 2 4 . . 1 2 2 2 . . 2 3 Gunslinging 1 | . . . . . . . 1 . . . . . . Exploded 4 | . . . 4 . . . 2 . . . . 2 3 Melee 1 | . . . 1 . . . 1 . . . . . . Uniques/NPCs Destroyed . | . . . . . . . . . . . . . . Combat | -11 -10 -9 -9 -9 -8 -8 -8 -7 -6 -6 -6 -5 -5 -------- Run | Yrd Mat Mat Min Exi Min Mat Sto Fac Fac Low Low Fac Ext Hostile Shots Fired 1008 | . 16 103 46 . 2 21 134 196 30 4 2 266 188 Missed 293 | . 4 29 9 . . 5 35 66 7 . . 78 60 Damage Taken 11166 | . 177 950 366 . 34 300 1394 1617 428 58 39 3134 2669 Core 1826 | . 12 123 100 . . 78 167 227 72 11 23 462 551 Absorbed by Shields 708 | . . . . . . . 23 . . . . 435 250 Redirected to Shielding 42 | . . . . . . . . 42 . . . . . Ignored by Resistances 343 | . . . . . . . . . . . . 92 251 Regen/Repaired (Parts) 250 | . . . . . . 88 . 162 . . . . . Core Remaining (%) 74 | 100 95 . . . 44 . 55 67 . . 87 . . Volleys Fired 437 | . 26 62 1 . . 19 85 92 21 3 . 109 19 Largest 3 | . 2 2 1 . . 2 2 2 3 3 . 3 3 Hottest 237 | . 90 95 30 . . 100 100 119 197 197 . 213 237 Shots Fired 880 | . 52 122 2 . . 30 154 153 59 5 . 263 40 Gun 578 | . 52 122 . . . 14 87 72 59 5 . 165 2 Cannon 287 | . . . . . . 16 59 81 . . . 95 36 Launcher 15 | . . . 2 . . . 8 . . . . 3 2 Special . | . . . . . . . . . . . . . . Kinetic 424 | . 24 40 . . . 19 116 92 14 . . 109 10 Thermal 389 | . 26 32 . . . 11 30 61 45 5 . 151 28 Explosive 10 | . . . 2 . . . 8 . . . . . . Electromagnetic 57 | . 2 50 . . . . . . . . . 3 2 Robot Hit Streak 45 | . 5 22 4 . . 19 25 19 27 2 . 45 5 Robot Miss Streak 5 | . 5 3 . . . 1 2 2 2 1 . 5 4 Penetration Max 1 | . . . . . . . . 1 . . . 1 . Secondary Targets 5 | . . 1 . . . . 2 2 . . . . . Max Gunslinging Chain 1 | . . 1 . . . . 1 1 . . . . . Shots Hit Robots 625 | . 25 90 6 . . 28 117 101 44 3 . 188 23 Core Hits 314 | . 13 44 7 . . 12 71 52 19 2 . 73 21 Critical Kills 4 | . . . . . . . . . . . . 4 . Critical Parts Destroyed 4 | . 1 . . . . . 1 . . . . 2 . Critical Strikes 34 | . 1 . 2 . . 1 6 9 2 1 . 11 1 Burn 14 | . . . . . . 1 2 4 2 1 . 4 . Meltdown 1 | . . . . . . . . . . . . 1 . Destroy 7 | . 1 . . . . . 1 . . . . 5 . Blast 10 | . . . . . . . 3 5 . . . 1 1 Sever 2 | . . . 2 . . . . . . . . . . Melee Attacks 21 | . . . 13 . . 1 . . . . . . 7 Impact . | . . . . . . . . . . . . . . Slashing 13 | . . . 13 . . . . . . . . . . Piercing . | . . . . . . . . . . . . . . Sneak Attacks 8 | . . . . . . 1 . . . . . . 7 Combat Hostiles . | . . . . . . . . . . . . . . Follow-up Attacks 1 | . . . 1 . . . . . . . . . . Damage Inflicted 17362 | . 324 1597 322 . . 541 3587 2517 934 82 . 6343 1115 Guns 8723 | . 324 1432 . . . 241 1302 1178 934 82 . 3230 . Cannons 5859 | . . . . . . 300 1049 1281 . . . 2593 636 Explosions 2636 | . . 165 236 . . . 1185 51 . . . 520 479 Melee 86 | . . . 86 . . . . . . . . . . Ramming 58 | . . . . . . . 51 7 . . . . . Kinetic 6832 | . 132 470 . . . 354 1908 1422 268 . . 2134 144 Thermal 7329 | . 166 420 . . . 187 443 1037 666 82 . 3836 492 Explosive 1472 | . . . 236 . . . 1185 51 . . . . . Electromagnetic 1585 | . 26 707 . . . . . . . . . 373 479 Impact . | . . . . . . . . . . . . . . Slashing 86 | . . . 86 . . . . . . . . . . Piercing . | . . . . . . . . . . . . . . Highest Corruption 16 | . . 10 10 10 10 . . 8 . . . 16 16 Average Corruption 9 | . . 9 10 10 10 . . 7 . . . 6 15 Corruption Purged 4 | . . . . . . . . . . . . 2 2 Corruption Blocked . | . . . . . . . . . . . . . . Effects 198 | . . 17 29 23 11 . . 17 . . . 49 52 Message Errors 48 | . . 3 8 7 2 . . 4 . . . 8 16 Matter Fused 49 | . . 3 8 8 2 . . 3 . . . 14 11 Heat Flow Errors 24 | . . 4 5 1 3 . . 1 . . . 5 5 Energy Discharges 23 | . . 2 3 5 1 . . 2 . . . 6 4 Parts Rejected 5 | . . 1 . . . . . . . . . 1 3 Parts Fused 2 | . . . . . . . . . . . . 1 1 Data Loss (minor) 25 | . . 1 3 2 2 . . 5 . . . 8 4 Data Loss (major) 4 | . . . 1 . . . . 1 . . . 1 1 Misfires 7 | . . 1 1 . . . . 1 . . . . 4 Alerts 4 | . . 1 . . . . . . . . . 1 2 Misdirections 2 | . . . . . 1 . . . . . . . 1 Weapon Failures 5 | . . 1 . . . . . . . . . 4 . Overload Shots . | . . . . . . . . . . . . . . Overflow Damage 254 | . . . 9 . . . 6 20 . . . 219 . Projectiles 226 | . . . . . . . 6 20 . . . 200 . Explosions 28 | . . . 9 . . . . . . . . 19 . Melee . | . . . . . . . . . . . . . . Knockbacks 15 | . . . . . . 1 4 6 . . . 3 1 Impact . | . . . . . . . . . . . . . . Kinetic 15 | . . . . . . 1 4 6 . . . 3 1 Secondary . | . . . . . . . . . . . . . . Self-Inflicted Damage 234 | . . 34 59 . . . 32 3 . . . 101 5 Shots 10 | . . 2 2 . . . 1 . . . . 4 1 Rammed 8 | . . . . . . . 7 1 . . . . . Targets Rammed 10 | . . . . . . . 9 1 . . . . . Kicked . | . . . . . . . . . . . . . . Crushed 2 | . . . . . . . 2 . . . . . . Highest Temperature 390 | . 218 189 175 149 233 108 226 360 390 154 . 270 351 Average Temperature 86 | . 97 54 85 79 118 37 50 87 134 64 . 90 117 Received Heat Transfer 2925 | . 123 354 . . . 54 609 528 180 40 12 286 739 Effects 5 | . . . . . . . . 1 2 . . . 2 Energy Bleed 1 | . . . . . . . . 1 . . . . . Interference 4 | . . . . . . . . . 2 . . . 2 Siege Activations . | . . . . . . . . . . . . . . Robots Corrupted 2 | . . 1 . . . . . . . . . . 1 Combat Hostiles 1 | . . 1 . . . . . . . . . . . Parts Fried 3 | . . 2 . . . . . . . . . . 1 Impact Corruptions . | . . . . . . . . . . . . . . Robots Melted 3 | . . . . . . . . . 1 . . 2 . Combat Hostiles 1 | . . . . . . . . . . . . 1 . Parts Melted 29 | . . 2 . . . . 2 2 3 . . 20 . Heat Transferred 11683 | . 481 816 . . . 481 1036 2146 1434 248 . 5041 . Parts Sabotaged . | . . . . . . . . . . . . . . Parts Stolen . | . . . . . . . . . . . . . . Parts Stripped . | . . . . . . . . . . . . . . Power Chain Reactions 7 | . . 3 . . . . . . . . . 2 2 Alert | -11 -10 -9 -9 -9 -8 -8 -8 -7 -6 -6 -6 -5 -5 ------- Run | Yrd Mat Mat Min Exi Min Mat Sto Fac Fac Low Low Fac Ext Peak Influence 465 | . 204 201 293 . 119 96 465 340 245 . . 410 357 Initial 193 | . . 85 78 . . 46 31 138 117 . . 40 193 Average 154 | . 112 73 89 . 97 39 265 151 128 . . 169 200 Maximum Alert Level 2 | . 1 1 1 . . . 2 1 1 . . 2 1 Low Security (%) 67 | 100 82 98 96 . 100 100 32 71 77 . . 53 56 Level 1 30 | . 17 1 3 . . . 61 28 22 . . 44 43 Level 2 1 | . . . . . . . 5 . . . . 1 . Level 3 . | . . . . . . . . . . . . . . Level 4 . | . . . . . . . . . . . . . . Level 5 . | . . . . . . . . . . . . . . High Security . | . . . . . . . . . . . . . . Max Security . | . . . . . . . . . . . . . . Squads Dispatched 32 | . 1 2 . . . 1 8 4 2 . . 12 2 Investigation 6 | . . . . . . . 1 . 1 . . 3 1 Extermination 7 | . . . . . . . . 3 . . . 4 . Reinforcement 10 | . 1 2 . . . . 2 1 1 . . 2 1 Assault 2 | . . . . . . . 2 . . . . . . Garrison 7 | . . . . . . 1 3 . . . . 3 . Intercept . | . . . . . . . . . . . . . . Searches Triggered . | . . . . . . . . . . . . . . Construction Impeded . | . . . . . . . . . . . . . . Haulers Reinforced 1 | . . . . . . . . . . . . 1 . Active Scanning Responses . | . . . . . . . . . . . . . . Cargo Convoy Interrupts . | . . . . . . . . . . . . . . Stealth | -11 -10 -9 -9 -9 -8 -8 -8 -7 -6 -6 -6 -5 -5 --------- Run | Yrd Mat Mat Min Exi Min Mat Sto Fac Fac Low Low Fac Ext Distress Signals 14 | . 3 4 . . . 1 4 1 . . . 1 . Communications Jammed 42 | . . . . . . . . 8 . . . 2 32 Distress Signals 42 | . . . . . . . . 8 . . . 2 32 Times Spotted 218 | . 12 27 12 . 4 11 47 36 9 1 1 40 18 Peak Tracking Total 11 | . 4 8 4 . 3 3 10 11 4 1 1 7 4 Tactical Retreats 14 | . 1 1 4 . . . . 4 1 . . 2 1 Traps | -11 -10 -9 -9 -9 -8 -8 -8 -7 -6 -6 -6 -5 -5 ------- Run | Yrd Mat Mat Min Exi Min Mat Sto Fac Fac Low Low Fac Ext Traps Triggered 7 | . . 1 . . . . 3 1 . . . 2 . Indirectly 1 | . . . . . . . . . . . . 1 . Trap Hack Attempts 71 | . . . . . . 23 . 7 2 . . 8 31 Triggered 1 | . . . . . . . . . . . . . 1 Disarmed 6 | . . . . . . 2 . . 2 . . 2 . Reprogrammed 5 | . . . . . . . . 1 . . . . 4 Reused . | . . . . . . . . . . . . . . Traps Extracted . | . . . . . . . . . . . . . . Installed . | . . . . . . . . . . . . . . Triggered 1 | . . . . . . . . . . 1 . . . Machines | -11 -10 -9 -9 -9 -8 -8 -8 -7 -6 -6 -6 -5 -5 ---------- Run | Yrd Mat Mat Min Exi Min Mat Sto Fac Fac Low Low Fac Ext Machines Disabled 20 | . 2 1 . . . . 4 6 . 1 . 6 . Max in Single Turn 4 | . 1 1 . . . . 1 4 . 1 . 2 . Garrison Access 2 | . . . . . . . . . 1 . . 1 . Machines Repaired . | . . . . . . . . . . . . . . Machines Dismantled . | . . . . . . . . . . . . . . Machines Sabotaged . | . . . . . . . . . . . . . . Overloaded Fab Kills . | . . . . . . . . . . . . . . Hacking | -11 -10 -9 -9 -9 -8 -8 -8 -7 -6 -6 -6 -5 -5 --------- Run | Yrd Mat Mat Min Exi Min Mat Sto Fac Fac Low Low Fac Ext Machines Accessed 40 | . 2 5 . 1 . 6 7 5 3 1 . 7 3 Terminals 26 | . 2 5 . . . 4 7 2 1 . . 2 3 Fabricators 4 | . . . . . . . . 1 1 . . 2 . Repair Stations 3 | . . . . . . 1 . 1 . . . 1 . Recycling Units 1 | . . . . . . 1 . . . . . . . Scanalyzers 2 | . . . . . . . . 1 . . . 1 . Garrison Access 2 | . . . . . . . . . 1 . . 1 . Total Hacks 136 | . 12 17 . 23 . 17 18 19 7 1 . 16 6 Successful 83 | . 6 10 . 23 . 10 10 11 1 1 . 9 2 Failed 53 | . 6 7 . . . 7 8 8 6 . . 7 4 Catastrophic 10 | . 2 . . . . 1 2 1 1 . . 1 2 Database Lockouts . | . . . . . . . . . . . . . . Manual 37 | . 6 7 . . . 10 2 10 2 . . . . Terminals 89 | . 12 17 . . . 14 18 14 2 . . 6 6 Fabricators 7 | . . . . . . . . 1 3 . . 3 . Repair Stations 5 | . . . . . . 2 . 2 . . . 1 . Recycling Units 1 | . . . . . . 1 . . . . . . . Scanalyzers 7 | . . . . . . . . 2 . . . 5 . Garrison Access 3 | . . . . . . . . . 2 . . 1 . Terminal Hacks 60 | . 6 7 . 23 . 5 10 3 . 1 . 3 2 Record 23 | . . . . 23 . . . . . . . . . Part Schematic 2 | . . . . . . 1 1 . . . . . . Robot Analysis 5 | . 3 1 . . . . 1 . . . . . . Prototype ID Bank 3 | . 1 1 . . . . 1 . . . . . . Open Door 6 | . . . . . . . 2 . . 1 . 1 2 Level Access Points 1 | . . . . . . . 1 . . . . . . Branch Access Points 1 | . . 1 . . . . . . . . . . . Alert Level 3 | . . 1 . . . 2 . . . . . . . Unreport Threat 6 | . . 1 . . . . 1 2 . . . 2 . Locate Traps 4 | . 1 1 . . . 1 1 . . . . . . Maintenance Status 1 | . . 1 . . . . . . . . . . . Transport Status 2 | . 1 . . . . . 1 . . . . . . Recall Investigation 1 | . . . . . . . 1 . . . . . . Hauler Manifests 1 | . . . . . . 1 . . . . . . . Zone Layout 1 | . . . . . . . . 1 . . . . . Fabricator Hacks 1 | . . . . . . . . . . . . 1 . Build 1 | . . . . . . . . . . . . 1 . Repair Station Hacks 4 | . . . . . . 2 . 2 . . . . . Scan Component 2 | . . . . . . 1 . 1 . . . . . Repair 2 | . . . . . . 1 . 1 . . . . . Recycling Unit Hacks 1 | . . . . . . 1 . . . . . . . Report Inventory 1 | . . . . . . 1 . . . . . . . Scanalyzer 6 | . . . . . . . . 2 . . . 4 . Insert Component 3 | . . . . . . . . 1 . . . 2 . Analyze 3 | . . . . . . . . 1 . . . 2 . Garrison Access Hacks 2 | . . . . . . . . . 1 . . 1 . Seal Access 2 | . . . . . . . . . 1 . . 1 . Unauthorized Hacks 9 | . . 3 . . . 2 . 4 . . . . . Terminals 9 | . . 3 . . . 2 . 4 . . . . . Track 2 | . . . . . . . . 2 . . . . . Botnet 4 | . . 1 . . . 2 . 1 . . . . . Operators 3 | . . 2 . . . . . 1 . . . . . Fabricators . | . . . . . . . . . . . . . . Repair Stations . | . . . . . . . . . . . . . . Recycling Units . | . . . . . . . . . . . . . . Scanalyzers . | . . . . . . . . . . . . . . Garrison Access . | . . . . . . . . . . . . . . Data Cores Recovered . | . . . . . . . . . . . . . . Used . | . . . . . . . . . . . . . . Hacking Detections 31 | . 2 5 . . . 4 5 4 2 . . 6 3 Full Trace Events 4 | . . . . . . . . . 1 . . 2 1 Feedback Events . | . . . . . . . . . . . . . . Feedback Blocked . | . . . . . . . . . . . . . . Robot Schematics Acquired . | . . . . . . . . . . . . . . Robots Built 3 | . . . . . . . . . . . . 3 . Authchips . | . . . . . . . . . . . . . . Time 152 | . . . . . . . . . . . . 152 . Total Robot Build Rating 15 | . . . . . . . . . . . . 15 . Part Schematics Acquired 5 | . . . . . . 1 1 1 . . . 2 . Parts Built . | . . . . . . . . . . . . . . Authchips . | . . . . . . . . . . . . . . Time . | . . . . . . . . . . . . . . Total Part Build Rating . | . . . . . . . . . . . . . . Parts Repaired 2 | . . . . . . 1 . 1 . . . . . Time 76 | . . . . . . 32 . 44 . . . . . Parts Recycled . | . . . . . . . . . . . . . . Recycled Matter . | . . . . . . . . . . . . . . Retrieved Matter . | . . . . . . . . . . . . . . Retrieved Components . | . . . . . . . . . . . . . . Parts Scanalyzed 3 | . . . . . . . . 1 . . . 2 . Part Schematics Acquired 3 | . . . . . . . . 1 . . . 2 . Parts Damaged . | . . . . . . . . . . . . . . Bothacking | -11 -10 -9 -9 -9 -8 -8 -8 -7 -6 -6 -6 -5 -5 ------------ Run | Yrd Mat Mat Min Exi Min Mat Sto Fac Fac Low Low Fac Ext Used RIF Installer . | . . . . . . . . . . . . . . Robots Hacked 1 | . . . . . . 1 . . . . . . . Non-combat 1 | . . . . . . 1 . . . . . . . Combat . | . . . . . . . . . . . . . . Robot Hacks Applied 1 | . . . . . . 1 . . . . . . . no_distress 1 | . . . . . . 1 . . . . . . . Relay Couplers Released . | . . . . . . . . . . . . . . Fabnet Peak Effective % . | . . . . . . . . . . . . . . Robots Rewired 13 | . . . . 4 . . . . . 3 . . 6 Allies Hacked . | . . . . . . . . . . . . . . Hacks Repelled . | . . . . . . . . . . . . . . Allies | -11 -10 -9 -9 -9 -8 -8 -8 -7 -6 -6 -6 -5 -5 -------- Run | Yrd Mat Mat Min Exi Min Mat Sto Fac Fac Low Low Fac Ext Total Allies 23 | . . . 3 4 . . 2 . . 3 . 3 8 Largest Group 6 | . . . 3 6 6 5 2 . . 3 3 4 4 Highest-Rated Group 120 | . . . 40 90 90 69 62 . . 93 93 118 120 Highest-Rated Ally 39 | . . . 16 21 21 21 31 . . 31 31 31 39 Total Orders 3 | . . . . . . . . . . . . 1 2 STAY 1 | . . . . . . . . . . . . . 1 ROAM 1 | . . . . . . . . . . . . 1 . FOLLOW 1 | . . . . . . . . . . . . . 1 Ally Attacks 151 | . . . . . 21 19 5 . . 7 23 16 60 Total Damage 2499 | . . . . . 301 182 84 . . 144 400 305 1083 Kills 21 | . . . . . 4 1 . . . 1 4 3 8 Allies Corrupted . | . . . . . . . . . . . . . . Allies Melted 2 | . . . . . . . . . . . 1 . 1 Intel | -11 -10 -9 -9 -9 -8 -8 -8 -7 -6 -6 -6 -5 -5 ------- Run | Yrd Mat Mat Min Exi Min Mat Sto Fac Fac Low Low Fac Ext Robot Analysis Total 5 | . 3 1 . . . . 1 . . . . . . Derelict Logs Recovered 2 | . . . 1 . . . . . . . 1 . . Drone Launches . | . . . . . . . . . . . . . . Drone Recoveries . | . . . . . . . . . . . . . . Decoded 0b10 Intel 18 | . . . . . . . . . . . . 18 . Garrisons 1 | . . . . . . . . . . . . 1 . Patrols 2 | . . . . . . . . . . . . 2 . Reinforcements 2 | . . . . . . . . . . . . 2 . Guards 13 | . . . . . . . . . . . . 13 . Exploration | -11 -10 -9 -9 -9 -8 -8 -8 -7 -6 -6 -6 -5 -5 ------------- Run | Yrd Mat Mat Min Exi Min Mat Sto Fac Fac Low Low Fac Ext Turns Passed 13244 | 46 255 966 961 858 294 670 1624 2080 637 801 381 2474 1197 Spaces Moved 6112 | 43 190 533 493 426 144 284 675 1002 247 401 196 939 539 Core 15 | 4 . . . . . . . . . . . . 11 Treads 179 | . . . . . . . 179 . . . . . . Legs 1584 | . . . . . . 62 . 196 247 401 196 462 20 Wheels 4324 | 39 190 533 493 426 144 222 496 806 . . . 477 498 Hover 10 | . . . . . . . . . . . . . 10 Flight . | . . . . . . . . . . . . . . Fastest Speed 28 | 50 80 110 145 195 195 145 120 105 125 195 195 120 28 Average Speed 169 | 77 86 122 177 195 195 171 186 138 193 195 195 190 179 Slowest Speed 490 | 80 140 195 195 195 195 260 490 263 196 195 195 275 260 Overloaded Moves . | . . . . . . . . . . . . . . Propulsion Burnouts . | . . . . . . . . . . . . . . Robots Hopped . | . . . . . . . . . . . . . . Cave-ins Triggered . | . . . . . . . . . . . . . . Exploration Rate (%) 40 | 3 34 50 90 77 34 19 88 24 5 53 22 21 52 Regions Visited 13 Branch Regions 7 Pre-discovered Areas 1 | . . . . 1 . . . . . . . . . Known Exits Taken 3 | . . 1 . . . . 1 1 . . . . . Unknown Exits Taken 10 | 1 1 . 1 1 1 1 . . 1 1 1 1 . Scrap Searched 6 | . . . 1 . 1 . . . . 3 1 . . Spaces Dug 2 | . . . . . . . . . . . . 2 . Terrain Destroyed 197 | . 21 4 22 . . 2 46 50 . . . 35 17 Melee . | . . . . . . . . . . . . . . Projectile 59 | . . . . . . 2 3 12 . . . 25 17 AOE 138 | . 21 4 22 . . . 43 38 . . . 10 . Terrain Rammed . | . . . . . . . . . . . . . . Walls Destroyed . | . . . . . . . . . . . . . . Machines Disabled . | . . . . . . . . . . . . . . Actions | -11 -10 -9 -9 -9 -8 -8 -8 -7 -6 -6 -6 -5 -5 --------- Run | Yrd Mat Mat Min Exi Min Mat Sto Fac Fac Low Low Fac Ext Total 8188 | 52 228 729 554 457 162 437 909 1547 366 417 195 1409 726 Wait 869 | . 5 57 31 . 5 74 20 372 45 . . 236 24 Move 6099 | 42 189 532 492 425 143 283 674 1001 246 400 195 938 539 Hop . | . . . . . . . . . . . . . . Pick Up 136 | 4 2 30 4 5 3 8 18 15 15 4 . 21 7 Fast Attach 90 | 6 1 9 2 . 2 6 21 13 3 . . 19 8 Attach 57 | . . 4 1 . . 2 4 9 3 1 . 19 14 Detach 31 | . . 3 . . 1 1 8 2 2 . . 10 4 Swap 101 | . 4 8 6 . 2 9 18 14 10 . . 24 6 Drop 157 | . 1 15 5 5 6 11 38 21 19 2 . 25 9 Fire 437 | . 26 62 1 . . 19 85 92 21 3 . 109 19 Melee 20 | . . . 12 . . 1 . . . . . . 7 Ram 1 | . . . . . . . . 1 . . . . . Kick . | . . . . . . . . . . . . . . Crush 9 | . . . . . . . 9 . . . . . . Escape Stasis 23 | . . . . . . . 14 . . . . . 9 Rewire 87 | . . 9 . 22 . . . . . 7 . . 49 Trap 71 | . . . . . . 23 . 7 2 . . 8 31 Miscellaneous . | . . . . . . . . . . . . . . Route ------- -11/Scrapyard -10/Materials -9/Materials (discovered 2 exits: *Min x2) -9/Mines (discovered 3 exits: *Mat / *Exi / [*Zio]) -9/Exiles -8/Mines -8/Materials -8/Storage -7/Factory -6/Factory -6/Lower Caves -6/Lower Caves (discovered 2 exits: *Fac / Dat) -5/Factory -5/Extension History --------- Turn | Location | Event 12 | -11/Scrapyard | Discovered new exit (range 15) 47 | -11/Scrapyard | Entered Materials 268 | -10/Materials | Discovered new exit (range 14) 302 | -10/Materials | Entered another Materials area 302 | -9/Materials | Evolved 2 slots: Propulsion x2 324 | -9/Materials | Build established: Mutant 409 | -9/Materials | Identified exit to Mines 1142 | -9/Materials | Lost 3 parts (2n1w) 1184 | -9/Materials | System corruption reached 10% 1268 | -9/Materials | Entered Mines 1275 | -9/Mines | YI-UF0 nonchalantly dropped a Grenade Launcher on the ground 1289 | -9/Mines | Met a Derelict bent on vengeance 1598 | -9/Mines | A weapon hastily lodged in a ceiling crevice suddenly fell to the ground 1642 | -9/Mines | Core integrity fell below 50% 2080 | -9/Mines | Build established: Scavenger-Mutant 2113 | -9/Mines | Assisted by bots powering up and referring to "LRC-V3" 2190 | -9/Mines | Discovered new exit (range 8) 2191 | -9/Mines | A Derelict revealed a hidden shortcut to a safe place 2204 | -9/Mines | Learned Materials garrison access intel 2214 | -9/Mines | Deemed a non-threat by the Exiles lab entrance 2216 | -9/Mines | Discovered new exit (range 5) 2229 | -9/Mines | Entered Exiles 2229 | -9/Exiles | Found Exiles lab destroyed 2229 | -9/Exiles | Accompanied by 2 allies 2898 | -9/Exiles | Discovered new exit (range 14) 2974 | -9/Exiles | Learned location of Zion (-7) 3087 | -9/Exiles | Entered Mines 3087 | -8/Mines | Accompanied by 6 allies 3126 | -8/Mines | Build established: Commander-Mutant 3323 | -8/Mines | Discovered new exit (range 15) 3381 | -8/Mines | Entered Materials 3381 | -8/Materials | Accompanied by 5 allies 3381 | -8/Materials | Evolved 2 slots: Utility x2 3382 | -8/Materials | Loaded intel: 1 garrison access location 3746 | -8/Materials | Lost 3 allies 3905 | -8/Materials | Repaired Arm. Wheel 3964 | -8/Materials | Discovered new exit (range 13) 4009 | -8/Materials | Garrison activated, responded to threat 4051 | -8/Materials | Entered Storage 4101 | -8/Storage | Met a pair of Derelict thieves 4221 | -8/Storage | Build established: Mutant 4228 | -8/Storage | Destroyed 9 combat bots 4828 | -8/Storage | Garrison activated, responded to threat 4912 | -8/Storage | Lost 4 parts (1p3n) 5172 | -8/Storage | Identified exit to Factory 5675 | -8/Storage | Entered Factory 5675 | -7/Factory | Evolved 2 slots: Utility x2 7244 | -7/Factory | Lost 4 parts (2n1u1w) 7401 | -7/Factory | Discovered new exit (range 5) 7491 | -7/Factory | Identified exit to Factory 7594 | -7/Factory | Repaired Gauss Cannon 7755 | -7/Factory | Entered another Factory area 7755 | -6/Factory | Evolved 2 slots: Power x1, Weapon x1 8104 | -6/Factory | Discovered new exit (range 7) 8392 | -6/Factory | Entered Lower Caves 8519 | -6/Lower Caves | Build established: Scavenger-Gunner 8520 | -6/Lower Caves | Attacked by a delusional Derelict stockpiling Unaware 8791 | -6/Lower Caves | Encountered a Warlord checkpoint 9163 | -6/Lower Caves | Discovered new exit (range 16) 9193 | -6/Lower Caves | Entered another Lower Caves area 9193 | -6/Lower Caves | Accompanied by 3 allies 9211 | -6/Lower Caves | Discovered new exit (range 13) 9229 | -6/Lower Caves | Identified exit to Data Miner 9574 | -6/Lower Caves | Entered Factory 9574 | -5/Factory | Accompanied by 1 ally 9574 | -5/Factory | Evolved 2 slots: Utility x2 9799 | -5/Factory | Fabricated G-50 Soldier (x3) 10022 | -5/Factory | Garrison activated, responded to threat 10610 | -5/Factory | Build established: Gunner 10855 | -5/Factory | Lost 8 parts (2p3n2u1w) 11138 | -5/Factory | Lost 3 parts (2n1u) 11653 | -5/Factory | System corruption reached 10% 11713 | -5/Factory | Lost 4 parts (3n1u) 11719 | -5/Factory | Build established: Tank 12039 | -5/Factory | Discovered new exit (range 6) 12048 | -5/Factory | Entered Extension 12208 | -5/Extension | Build established: Scavenger-Tank 12338 | -5/Extension | Core integrity fell below 50% 12410 | -5/Extension | Rescued a captive Derelict 12825 | -5/Extension | Rescued a captive Derelict 12839 | -5/Extension | Spotted B-75 Beast 12852 | -5/Extension | Spotted B-75 Beast 12904 | -5/Extension | Lost 4 allies 13193 | -5/Extension | Core integrity fell below 20% 13245 | -5/Extension | Destroyed by Y-64 Sentinel with Wave Gun Last Messages --------------- 13206_ Imp. Linear Gravjet destroyed. 13206_ Hcp. Battery destroyed. 13207_ Acquired 1 matter. 13210_ Slug penetrates Wall. 13211_ Carbon-fiber Leg destroyed. 13212_ Penetrated by Slug. 13212_ Angular Momentum Engine destroyed. 13213_ System corrupted: Heat flow error (+133). 13215_ System Restoration Module purges 1% system corruption (15%). 13215_ K-01 Serf destroyed. 13229_ System corrupted: Component data lost. 13230_ Acquired Mic. Nuclear Core. 13231_ System Restoration Module purges 1% system corruption (14%). 13233_ Acquired Mic. Nuclear Core. 13238_ Imp. Transmission Jammer destroyed. 13238_ Penetrated by Slug. 13239_ Dropped Lrg. Storage Unit. 13239_ Dropped Mic. Nuclear Core. 13241_ Penetrated by Slug. 13245_ Critical hit (Burn: +37). Map ----- +----------------------------------------------------+ | ######################???????#########?# ### | | ##??????????????????????????????????????########?? | | ?????????????????????????????????????????????????? | | ?????????????????????????????????????????????????? | | ?????????????????????????????????????????????????? | | ?????????????????????????????????????????????????? | | ?????????????????????????????????????????????????? | | ?????????????????????????????????????????????????? | | ?????????????????????????????????????????????????? | | ?????????????????????????????????????????????????? | | ?????????????????????????????????????????????????? | | ?????????????????????????????????????????????????? | | ?????????????????????????????????????????????????? | | ?????????????????????????????????????????????????? | | ?????????????????????????????????????????????????? | | ?????????????????????????????????????????????????? | | ?????????????????????????????????????????????????? | | ?????????????????????????????????????????????????? | | ?????????????????????????????????????????????????? | | ???????????????#?????????????????????????????#???? | | ############################################"##### | | % k k R [=[!%! | | %% BB % =% | | BB = ] | | % BB% * | | uk @ Y BB =%= | | ###############"############+##;##+!*""########### | | ???????????????##??????????# ###"!]]" #??????????? | | ???????????????????????????# !*!#????????????? | | ???????????????????????????####"#[!!#????????????? | | ??????????????????????????????#######????????????? | | ?????????????????????????????????????????????????? | | ?????????????????????????????????????????????????? | | ?????????????????????????????????????????????????? | | | | | | | | | | | | | | | | | | | | | | | | | | | | | | | | | +----------------------------------------------------+ Best States ------------- Heat Dissipation 67 Coolant Potential 65 Energy Generation 39 Energy Capacity 780 Matter Stores 300 Matter Capacity 300 Sight Range 16 Robot Scan Range 15 Terrain Scan Range 16 Terrain Scan Density 10 Jamming Range 14 Additional Mass Support 6 Armor Coverage 450 Resistance: KI 25 Weapon Shielding 33 Evasion (%) 55 Targeting Accuracy 14 Recoil Reduction 4 Energy Filtering 30 Particle Charging 20 Offensive Hacking 10 Defensive Hacking 10 Trap Extractor Capacity 4 Item Schematics ----------------- Huge Storage Unit | -8/Materials | Hacked Adv. Sensor Array | -8/Storage | Hacked Mak. Transmission Jammer | -7/Factory | Scanalyzed Melee Analysis Suite | -5/Factory | Scanalyzed Gauss Cannon | -5/Factory | Scanalyzed Robot Schematics ------------------ None Fabricated ------------ G-50 Soldier | x3 | -5/Factory | Preloaded Alien Tech Used ----------------- None Achievements -------------- Total Silence Challenges ------------ None Game ------ Seed MassGyrokineticArmor Manual? 0 Play Time 02:19:45 Cumulative 165.1 hours Start 2024.08.11 @ 15:28:59 End 2024.08.12 @ 21:12:02 Sessions 5 Manual Loads 0 Difficulty Rogue Special Mode None Game No. 171 Rogue 171 Adventurer 0 Explorer 0 Win Type - Total 0 Types 0/0/0/0/0/0/0/0/0 Lore% 19 Gallery% 53 Achievement% 39 Wizard Run 0 Options --------- Layout 0 ASCII 0 Keyboard 1 Movement Vi Keybinds 0 Fullscreen 2 Font 24/Smallcaps Map View 76x50 Zoom Use 0% Tactical HUD 1 Map Filters NONE Filters NONE Steam 1 RUN: 3f16fe1f-3696-409a-9c4d-36e87064b0f0